bitfinex/quotes_SOLUSD_20240921
["timestamp","ask_amount","ask_price","bid_price","bid_amount"]
[1726927595972,23.776884,148.85,148.76,15.8148]
[1726927596174,23.776884,148.86,148.76,15.8148]
[1726927596976,23.776884,148.86,148.77,0.12549]
[1726927597555,0.82452229,148.85,148.77,0.12549]
[1726927599673,23.776884,148.84,148.76,15.8148]
[1726927599974,0.82452229,148.83,148.76,15.8148]
[1726927600801,0.82452229,148.82,148.76,15.8148]
[1726927602378,0.82452229,148.85,148.76,15.8148]
[1726927602563,23.776884,148.84,148.76,15.8148]
[1726927602763,0.82452229,148.83,148.76,15.8148]
[1726927603878,30.494584,148.86,148.76,15.8148]
[1726927605059,23.776884,148.84,148.76,15.8148]
[1726927605259,0.82452229,148.83,148.76,15.8148]
[1726927606172,0.82452229,148.82,148.76,15.8148]
[1726927607183,0.82452229,148.81,148.76,15.8148]
[1726927608295,24.60140629,148.84,148.76,15.8148]
[1726927608686,31.32000629,148.84,148.76,15.8148]
[1726927608886,6.84459,148.83,148.76,15.8148]
[1726927609072,24.60140629,148.82,148.76,15.3148]
[1726927609385,24.60140629,148.82,148.76,14.3148]
[1726927609586,6.84399,148.85,148.76,14.3148]
[1726927609788,23.776884,148.84,148.76,13.8148]
[1726927610170,0.82452229,148.83,148.76,13.3148]
[1726927610566,0.82452229,148.83,148.76,12.8148]
[1726927610864,0.82452229,148.83,148.76,12.3148]
[1726927611190,0.82452229,148.83,148.76,11.8148]
[1726927611574,0.82452229,148.83,148.76,11.3148]
[1726927612591,23.776884,148.82,148.76,11.3148]
[1726927612784,23.776884,148.8,148.76,11.3148]
[1726927612981,0.82452229,148.79,148.76,11.3148]
[1726927616277,0.82452229,148.78,148.76,11.3148]
[1726927616474,23.776884,148.81,148.76,11.3148]
[1726927616698,23.776884,148.79,148.76,11.3148]
[1726927616991,0.82452229,148.78,148.76,11.3148]
[1726927617682,23.776884,148.82,148.76,11.3148]
[1726927618568,23.776884,148.8,148.76,11.3148]
[1726927618776,0.82452229,148.79,148.76,11.3148]
[1726927620196,23.776884,148.78,148.76,11.3148]
[1726927620788,23.902374,148.8,148.76,11.3148]
[1726927620983,0.82452229,148.79,148.76,11.3148]
[1726927621185,23.776884,148.8,148.76,11.3148]
[1726927622598,23.776884,148.81,148.76,11.3148]
[1726927622898,0.82452229,148.8,148.76,11.3148]
[1726927623087,23.776884,148.81,148.76,11.3148]
[1726927624097,0.12549,148.78,148.72,16.4137804]
[1726927624278,23.776884,148.76,148.72,16.4137804]
[1726927624480,0.82452229,148.75,148.72,16.4137804]
[1726927625385,23.776884,148.76,148.72,16.4137804]
[1726927625779,0.82452229,148.75,148.72,16.4137804]
[1726927626892,23.776884,148.74,148.72,16.4137804]
[1726927627197,23.776884,148.73,148.72,16.4137804]
[1726927631804,23.776884,148.74,148.68,16.4137804]
[1726927632003,0.12549,148.78,148.68,16.4137804]
[1726927632004,23.776884,148.72,148.68,16.4137804]
[1726927632303,0.82452229,148.71,148.68,16.4137804]
[1726927634004,23.776884,148.7,148.68,16.4137804]
[1726927634301,24.60140629,148.69,148.68,16.4137804]
[1726927634800,24.027864,148.72,148.68,16.4137804]
[1726927635102,0.82452229,148.71,148.68,16.4137804]
[1726927635287,23.776884,148.7,148.68,16.4137804]
[1726927635488,24.60140629,148.69,148.68,16.4137804]
[1726927636083,23.776884,148.69,148.68,16.4137804]
[1726927637305,23.776884,148.69,148.68,0.2498804]
[1726927637510,23.776884,148.69,148.68,6.9756804]
[1726927638798,23.776884,148.69,148.68,0.2498804]
[1726927639594,23.776884,148.68,148.64,16.5112402]
[1726927639797,0.82452229,148.67,148.64,16.5112402]
[1726927640303,23.776884,148.68,148.64,16.5112402]
[1726927640505,60.79098,148.72,148.64,16.5112402]
[1726927640711,23.776884,148.71,148.64,16.5112402]
[1726927641092,0.82452229,148.7,148.64,16.5112402]
[1726927642414,0.82452229,148.69,148.64,16.5112402]
[1726927643113,23.776884,148.68,148.64,16.5112402]
[1726927643314,0.82452229,148.67,148.64,16.5112402]
[1726927644910,23.776884,148.66,148.64,16.5112402]
[1726927645102,0.82452229,148.65,148.64,16.5112402]
[1726927646311,23.776884,148.66,148.64,16.5112402]
[1726927646810,0.82452229,148.65,148.64,16.5112402]
[1726927647800,24.60140629,148.65,148.64,16.5112402]
[1726927648001,24.60140629,148.65,148.64,0.3473402]
[1726927648321,23.902374,148.65,148.64,0.3473402]
[1726927648810,24.72689629,148.65,148.64,0.3473402]
[1726927649009,23.902374,148.65,148.64,0.3473402]
[1726927649514,23.902374,148.64,148.63,0.0658759]
[1726927649818,23.902374,148.64,148.6,15.6827]
[1726927649819,23.902374,148.63,148.6,15.6827]
[1726927650007,23.776884,148.61,148.59,0.2498804]
[1726927650217,24.60140629,148.6,148.59,0.2498804]
[1726927650414,24.60140629,148.6,148.57,6.8277598]
[1726927650415,23.776884,148.59,148.57,6.8277598]
[1726927650606,23.776884,148.59,148.58,6.7303]
[1726927651299,23.776884,148.59,148.57,0.0974598]
[1726927653009,0.12549,148.62,148.57,0.0974598]
[1726927653435,23.776884,148.6,148.57,0.0974598]
[1726927653728,0.82452229,148.59,148.57,0.0974598]
[1726927654822,0.12549,148.59,148.57,0.0974598]
[1726927655024,24.60140629,148.58,148.57,0.0974598]
[1726927655422,24.85238629,148.58,148.54,0.2735527]
[1726927655616,23.902374,148.57,148.54,0.2735527]
[1726927655927,60.54,148.59,148.54,0.2735527]
[1726927656106,23.776884,148.58,148.54,0.2735527]
[1726927658837,0.82452229,148.57,148.54,0.2735527]
[1726927660323,23.776884,148.56,148.54,0.2735527]
[1726927660526,0.82452229,148.55,148.54,0.2735527]
[1726927662012,24.60140629,148.55,148.54,0.2735527]
[1726927662828,23.776884,148.55,148.54,0.2735527]
[1726927663034,40.36,148.56,148.54,0.2735527]
[1726927663520,23.776884,148.56,148.54,0.2735527]
[1726927664022,24.60140629,148.55,148.54,0.2735527]
[1726927664331,60.54,148.57,148.54,0.2735527]
[1726927664532,23.776884,148.56,148.54,0.2735527]
[1726927665429,60.66549,148.58,148.54,0.2735527]
[1726927665612,23.776884,148.57,148.54,0.2735527]
[1726927665927,40.36,148.58,148.54,0.2735527]
[1726927666115,0.12549,148.61,148.54,0.2735527]
[1726927666319,0.12549,148.59,148.54,0.2735527]
[1726927666521,23.902374,148.59,148.54,0.2735527]
[1726927666834,84.442374,148.59,148.54,0.2735527]
[1726927667212,0.82452229,148.58,148.54,0.2735527]
[1726927667834,84.442374,148.59,148.54,0.2735527]
[1726927668315,0.82452229,148.58,148.54,0.2735527]
[1726927668835,84.442374,148.59,148.54,0.2735527]
[1726927669136,0.95001229,148.58,148.54,0.2735527]
[1726927669430,23.776884,148.57,148.54,0.2735527]
[1726927669635,0.82452229,148.56,148.54,0.2735527]
[1726927670537,23.776884,148.55,148.54,0.2735527]
[1726927670737,84.442374,148.55,148.52,15.6827]
[1726927670937,0.95001229,148.54,148.52,15.6827]
[1726927671235,0.12549,148.52,148.48,0.4658847]
[1726927671628,0.82452229,148.51,148.48,0.4658847]
[1726927672437,23.776884,148.5,148.48,0.4658847]
[1726927672611,0.82452229,148.49,148.48,0.4658847]
[1726927672816,0.12549,148.52,148.48,0.4658847]
[1726927674737,0.82452229,148.51,148.48,0.4658847]
[1726927676331,23.902374,148.5,148.48,0.4658847]
[1726927676535,0.82452229,148.49,148.48,0.4658847]
[1726927676838,24.85238629,148.53,148.48,0.4658847]
[1726927677742,24.027864,148.53,148.48,0.4658847]
[1726927680247,23.776884,148.54,148.48,0.4658847]
[1726927680536,20.18,148.57,148.48,0.4658847]
[1726927680715,0.82452229,148.56,148.48,0.4658847]
[1726927681134,20.18,148.57,148.48,0.4658847]
[1726927681729,60.63,148.58,148.48,20.4658847]
[1726927681929,60.63,148.58,148.49,6.0425]
[1726927683152,24.027864,148.57,148.5,16.5953]
[1726927683322,0.25098,148.57,148.5,16.5953]
[1726927684745,40.45,148.59,148.5,16.5953]
[1726927685136,40.45,148.59,148.51,20.0]
[1726927685725,40.45,148.6,148.51,20.0]
[1726927685926,0.82452229,148.58,148.51,20.0]
[1726927686944,23.776884,148.57,148.5,16.5953]
[1726927687126,0.82452229,148.56,148.5,16.5953]
[1726927687332,0.12549,148.56,148.5,16.5953]
[1726927688430,23.776884,148.57,148.5,16.5953]
[1726927688748,60.63,148.61,148.5,16.5953]
[1726927688936,23.902374,148.6,148.5,16.5953]
[1726927689323,0.82452229,148.59,148.5,16.5953]
[1726927689527,23.776884,148.58,148.5,16.5953]
[1726927689740,0.82452229,148.57,148.5,16.5953]
[1726927690650,0.82452229,148.56,148.5,16.5953]
[1726927691153,0.12549,148.59,148.5,16.5953]
[1726927691647,0.82452229,148.58,148.5,16.5953]
[1726927692244,23.776884,148.57,148.5,16.5953]
[1726927692442,0.82452229,148.56,148.5,16.5953]
[1726927692641,24.60140629,148.55,148.5,16.5953]
[1726927692850,0.25098,148.54,148.5,16.5953]
[1726927693160,23.902374,148.52,148.5,16.5953]
[1726927693454,0.12549,148.52,148.5,16.5953]
[1726927693638,0.95001229,148.52,148.5,16.5953]
[1726927693841,0.12549,148.52,148.5,16.5953]
[1726927696232,0.95001229,148.52,148.5,16.5953]
[1726927697433,0.95001229,148.52,148.48,0.4658847]
[1726927697642,0.12549,148.5,148.48,0.4658847]
[1726927697948,0.82452229,148.49,148.48,0.4658847]
[1726927698545,24.72689629,148.49,148.48,0.4658847]
[1726927698744,23.902374,148.49,148.48,0.4658847]
[1726927701459,23.776884,148.49,148.48,0.4658847]
[1726927702259,0.12549,148.51,148.48,0.4658847]
[1726927702758,0.12549,148.49,148.48,0.4658847]
[1726927703059,0.12549,148.49,148.48,7.2007847]
[1726927703254,40.18,148.54,148.49,6.7341]
[1726927703456,46.9123,148.54,148.49,6.7341]
[1726927704063,20.18,148.53,148.48,0.4658847]
[1726927704455,0.82452229,148.52,148.48,0.4658847]
[1726927704858,0.25098,148.52,148.48,0.4658847]
[1726927705259,0.82452229,148.51,148.49,6.734]
[1726927705761,0.25098,148.52,148.49,6.734]
[1726927705952,0.25098,148.53,148.5,6.7339]
[1726927706259,0.25098,148.53,148.48,0.4658847]
[1726927706260,0.12549,148.51,148.48,0.4658847]
[1726927706466,0.82452229,148.5,148.48,0.4658847]
[1726927707248,0.12549,148.52,148.48,0.4658847]
[1726927707962,0.82452229,148.51,148.48,0.4658847]
[1726927708143,0.12549,148.5,148.48,0.4658847]
[1726927708464,0.82452229,148.49,148.48,0.4658847]
[1726927708762,0.95001229,148.49,148.48,0.4658847]
[1726927709563,0.12549,148.49,148.48,0.4658847]
[1726927709865,91.265374,148.53,148.48,0.4658847]
[1726927710239,0.25098,148.51,148.48,0.4658847]
[1726927710439,0.12549,148.49,148.48,0.4658847]
[1726927711871,0.12549,148.51,148.48,0.4658847]
[1726927712663,0.12549,148.51,148.47,17.4148045]
[1726927713073,0.82452229,148.5,148.47,17.4148045]
[1726927713377,0.12549,148.51,148.47,17.4148045]
[1726927713566,0.12549,148.49,148.47,17.4148045]
[1726927715363,0.95001229,148.49,148.47,17.4148045]
[1726927716071,0.12549,148.48,148.47,0.5772045]
[1726927717465,1.07550229,148.48,148.47,0.5772045]
[1726927717670,0.25098,148.48,148.47,0.5772045]
[1726927718250,1.07550229,148.48,148.47,0.5772045]
[1726927718754,87.61678,148.46,148.45,0.0658759]
[1726927718955,44.207864,148.44,148.43,0.2535297]
[1726927719177,0.25098,148.43,148.39,16.0723]
[1726927719384,0.82452229,148.42,148.39,16.0723]
[1726927719749,0.12549,148.41,148.39,16.0723]
[1726927720162,0.82452229,148.41,148.39,16.0723]
[1726927720359,20.18,148.45,148.39,16.0723]
[1726927720568,0.82452229,148.44,148.39,16.0723]
[1726927721455,0.25098,148.42,148.39,16.0723]
[1726927722171,0.82452229,148.41,148.39,16.0723]
[1726927722369,0.12549,148.4,148.39,16.0723]
[1726927722951,0.12549,148.42,148.39,16.0723]
[1726927723563,44.207864,148.42,148.39,16.0723]
[1726927724868,44.207864,148.42,148.38,0.3509895]
[1726927724869,50.945464,148.42,148.38,0.3509895]
[1726927725078,0.82452229,148.41,148.38,0.3509895]
[1726927725369,0.25098,148.4,148.38,0.3509895]
[1726927725558,0.95001229,148.39,148.38,0.3509895]
[1726927725951,20.18,148.42,148.38,0.3509895]
[1726927726156,44.207864,148.43,148.38,0.3509895]
[1726927726970,20.30549,148.43,148.38,0.3509895]
[1726927727770,27.04219,148.44,148.38,0.3509895]
[1726927728273,0.12549,148.43,148.38,0.3509895]
[1726927729349,40.45,148.49,148.39,15.4089]
[1726927729563,47.1848,148.49,148.4,6.0828]
[1726927729768,6.735,148.48,148.4,6.0828]
[1726927730472,0.82452229,148.47,148.4,6.0828]
[1726927730651,26.915,148.48,148.4,6.0828]
[1726927731270,0.82452229,148.47,148.4,6.0828]
[1726927731468,6.7362,148.45,148.4,6.0828]
[1726927731663,0.82452229,148.44,148.4,6.0828]
[1726927732372,0.12549,148.43,148.4,6.0828]
[1726927732576,0.82452229,148.42,148.4,6.0828]
[1726927735972,0.12549,148.43,148.4,6.0828]
[1726927736765,20.18,148.46,148.4,6.0828]
[1726927736971,0.12549,148.47,148.4,6.0828]
[1726927737186,0.25098,148.47,148.4,6.0828]
[1726927737356,0.12549,148.46,148.4,6.0828]
[1726927737558,0.25098,148.46,148.4,6.0828]
[1726927737855,0.82452229,148.45,148.4,6.0828]
[1726927741468,0.25098,148.47,148.4,6.0828]
[1726927742869,0.25098,148.45,148.4,6.0828]
[1726927743069,0.82452229,148.44,148.4,6.0828]
[1726927743576,0.12549,148.43,148.4,6.0828]
[1726927743881,0.82452229,148.42,148.4,6.0828]
[1726927744374,0.12549,148.43,148.4,6.0828]
[1726927744576,0.12549,148.45,148.4,6.0828]
[1726927744776,0.25098,148.45,148.4,6.0828]
[1726927745484,0.25098,148.45,148.4,5.5828]
[1726927746075,20.18,148.48,148.4,5.5828]
[1726927746272,6.6854297,148.54,148.4,5.5828]
[1726927746273,20.18,148.49,148.41,15.8943]
[1726927747389,20.18,148.5,148.41,15.8943]
[1726927747993,0.12549,148.49,148.41,15.8943]
[1726927748283,20.18,148.51,148.41,15.8943]
[1726927748487,20.18,148.51,148.43,15.8943]
[1726927749592,20.18,148.53,148.43,15.8943]
[1726927750287,0.25098,148.52,148.43,15.8943]
[1726927751001,0.82452229,148.51,148.43,15.8943]
[1726927751170,0.12549,148.5,148.43,15.8943]
[1726927751370,0.82452229,148.49,148.43,15.8943]
[1726927751788,0.12549,148.48,148.43,15.8943]
[1726927752090,0.82452229,148.47,148.43,15.8943]
[1726927752288,0.12549,148.48,148.43,15.8943]
[1726927752790,0.25098,148.49,148.43,15.8943]
[1726927752980,0.12549,148.49,148.43,15.8943]
[1726927753375,0.82452229,148.48,148.43,15.8943]
[1726927754389,0.12549,148.49,148.43,15.8943]
[1726927754597,0.82452229,148.48,148.43,15.8943]
[1726927755275,0.25098,148.5,148.43,15.8943]
[1726927755796,20.43098,148.5,148.43,15.8943]
[1726927756791,0.82452229,148.49,148.43,15.8943]
[1726927757180,0.12549,148.48,148.43,15.8943]
[1726927757396,0.82452229,148.47,148.43,15.8943]
[1726927757995,0.12549,148.47,148.43,15.8943]
[1726927758677,0.25098,148.48,148.43,15.8943]
[1726927759182,0.12549,148.48,148.43,15.8943]
[1726927759381,0.12549,148.49,148.43,15.8943]
[1726927759604,0.82452229,148.48,148.43,15.8943]
[1726927760694,0.12549,148.47,148.43,15.8943]
[1726927760885,0.82452229,148.46,148.43,15.8943]
[1726927761083,0.12549,148.47,148.43,15.8943]
[1726927761977,0.12549,148.48,148.43,15.8943]
[1726927763293,20.30549,148.48,148.43,15.8943]
[1726927764406,0.25098,148.48,148.43,15.8943]
[1726927765304,0.82452229,148.47,148.43,15.8943]
[1726927765487,0.25098,148.48,148.43,15.8943]
[1726927766910,0.82452229,148.47,148.43,15.8943]
[1726927767585,0.25098,148.48,148.43,15.8943]
[1726927769293,0.25098,148.49,148.43,15.8943]
[1726927770403,6.7332,148.52,148.43,15.8943]
[1726927771397,40.7035297,148.54,148.43,15.8943]
[1726927771398,6.7326,148.53,148.43,15.8943]
[1726927771599,27.73762229,148.52,148.43,15.8943]
[1726927772785,0.25098,148.51,148.43,15.8943]
[1726927772991,0.25098,148.49,148.43,15.8943]
[1726927773213,0.12549,148.47,148.43,15.8943]
[1726927773595,20.30549,148.49,148.43,15.8943]
[1726927773804,0.12549,148.48,148.43,15.8943]
[1726927774696,0.82452229,148.47,148.43,15.8943]
[1726927775802,0.12549,148.48,148.43,15.8943]
[1726927776313,20.18,148.51,148.43,15.8943]
[1726927776616,40.7035297,148.54,148.44,23.18695066]
[1726927776818,0.2535297,148.54,148.45,15.7134]
[1726927777120,0.2535297,148.54,148.47,15.7134]
[1726927777916,0.2535297,148.54,148.48,6.1262]
[1726927779414,0.2535297,148.54,148.49,15.7134]
[1726927782322,0.2535297,148.54,148.49,17.06022562]
[1726927783801,0.2535297,148.54,148.49,15.7134]
[1726927792820,0.2535297,148.54,148.51,23.776884]
[1726927793027,0.2535297,148.58,148.52,16.5863]
[1726927795323,0.82452229,148.57,148.52,16.5863]
[1726927797421,0.2535297,148.58,148.52,16.5863]
[1726927797725,0.2535297,148.58,148.53,6.0553]
[1726927799221,0.2535297,148.58,148.54,16.5863]
[1726927800425,0.82452229,148.57,148.54,16.5863]
[1726927800613,0.82452229,148.56,148.54,16.5863]
[1726927801012,0.2535297,148.58,148.54,16.5863]
[1726927801712,0.82452229,148.57,148.54,16.5863]
[1726927801911,0.2535297,148.58,148.54,16.5863]
[1726927811435,0.2535297,148.58,148.54,17.93264475]
[1726927811612,0.2535297,148.63,148.56,6.0276]
[1726927811817,0.2535297,148.63,148.57,17.06220956]
[1726927812731,0.82452229,148.62,148.57,15.7162]
[1726927813141,0.2535297,148.63,148.57,15.7162]
[1726927813440,0.12549,148.62,148.57,15.7162]
[1726927813738,0.2535297,148.63,148.58,1.34614661]
[1726927813935,0.2535297,148.63,148.59,15.7162]
[1726927833131,0.2535297,148.63,148.59,27.89803668]
[1726927833336,0.2535297,148.63,148.6,13.52760242]
[1726927833546,0.2535297,148.63,148.61,6.3753]
[1726927835445,0.3194056,148.67,148.62,28.57287532]
[1726927835781,0.3194056,148.67,148.64,12.18183668]
[1726927836059,0.3194056,148.67,148.65,28.57241504]
[1726927836261,0.3194056,148.67,148.66,6.3753]
[1726927838057,0.3194056,148.67,148.66,7.72042562]
[1726927838252,0.3194056,148.67,148.66,31.49730009]
[1726927838459,0.3194056,148.67,148.66,43.67913677]
[1726927839653,0.3194056,148.67,148.66,44.36211653]
[1726927840149,0.0974598,148.7,148.67,23.776884]
[1726927840350,0.0974598,148.7,148.68,0.68288789]
[1726927841246,0.0974598,148.7,148.69,1.34497567]
[1726927841462,0.0974598,148.7,148.68,0.68288789]
[1726927841960,0.0974598,148.7,148.68,2.02779892]
[1726927842336,0.0974598,148.7,148.68,0.68288789]
[1726927843358,0.0974598,148.7,148.69,1.34489962]
[1726927843560,0.0974598,148.7,148.68,0.68288789]
[1726927850851,6.8225598,148.7,148.68,0.68288789]
[1726927851040,24.85238629,148.69,148.61,15.0734]
[1726927851247,30.753264,148.69,148.61,15.0734]
[1726927851753,0.25098,148.67,148.61,15.0734]
[1726927851956,0.82452229,148.66,148.61,15.0734]
[1726927852351,6.97818,148.65,148.57,15.0734]
[1726927852569,0.82452229,148.64,148.57,15.0734]
[1726927852756,0.25098,148.63,148.57,15.0734]
[1726927853066,0.25098,148.63,148.56,0.2535297]
[1726927853067,0.82452229,148.62,148.56,0.2535297]
[1726927853266,6.57948,148.63,148.52,0.2535297]
[1726927853267,26.63399,148.63,148.52,0.2535297]
[1726927853446,0.12549,148.62,148.53,0.22817673]
[1726927853651,0.82452229,148.61,148.52,0.2535297]
[1726927853864,0.12549,148.6,148.53,0.32884544]
[1726927854066,0.12549,148.6,148.52,0.2535297]
[1726927854266,0.25098,148.6,148.52,0.2535297]
[1726927854458,0.25098,148.6,148.53,0.22817673]
[1726927854659,0.25098,148.6,148.53,0.68357754]
[1726927855454,0.82452229,148.59,148.53,0.68357754]
[1726927855654,0.25098,148.6,148.53,0.68357754]
[1726927856868,66.9585,148.63,148.53,0.68357754]
[1726927856869,24.027864,148.61,148.53,0.68357754]
[1726927858265,0.25098,148.61,148.53,0.68357754]
[1726927858969,0.82452229,148.6,148.53,0.68357754]
[1726927859466,0.12549,148.59,148.53,0.68357754]
[1726927859775,0.82452229,148.58,148.53,0.68357754]
[1726927860153,0.12549,148.57,148.53,0.68357754]
[1726927860642,0.82452229,148.57,148.53,0.68357754]
[1726927861761,0.12549,148.56,148.53,0.68357754]
[1726927861951,0.82452229,148.55,148.53,0.68357754]
[1726927862867,0.12549,148.58,148.53,0.68357754]
[1726927863066,0.12549,148.54,148.53,0.68357754]
[1726927863363,0.95001229,148.54,148.53,0.68357754]
[1726927863869,0.95001229,148.54,148.52,0.2535297]
[1726927869778,40.18,148.6,148.52,0.2535297]
[1726927869958,6.729,148.61,148.52,0.2535297]
[1726927871278,0.12549,148.6,148.52,0.2535297]
[1726927871458,24.027864,148.6,148.52,0.2535297]
[1726927871661,6.98048,148.6,148.52,0.2535297]
[1726927871978,0.12549,148.58,148.52,0.2535297]
[1726927872176,0.25098,148.58,148.52,0.2535297]
[1726927872368,0.12549,148.56,148.52,0.2535297]
[1726927872568,0.82452229,148.55,148.52,0.2535297]
[1726927873179,0.12549,148.54,148.52,0.2535297]
[1726927873376,0.82452229,148.53,148.52,0.2535297]
[1726927875264,60.75549,148.58,148.52,0.2535297]
[1726927875265,0.12549,148.54,148.52,0.2535297]
[1726927875468,0.12549,148.52,148.48,15.0734]
[1726927875665,0.82452229,148.51,148.48,15.0734]
[1726927875867,0.12549,148.53,148.48,15.0734]
[1726927876172,0.82452229,148.52,148.48,15.0734]
[1726927876483,0.12549,148.53,148.48,15.0734]
[1726927877283,0.12549,148.53,148.48,15.1986668]
[1726927877764,0.12549,148.55,148.48,15.1986668]
[1726927877963,0.95001229,148.55,148.48,15.1986668]
[1726927878389,0.12549,148.53,148.48,15.1986668]
[1726927878687,0.95001229,148.53,148.48,15.1986668]
[1726927879169,7.68271229,148.53,148.48,15.1986668]
[1726927879688,7.68271229,148.53,148.48,0.1252668]
[1726927879689,6.85909,148.51,148.48,0.1252668]
[1726927879987,0.82452229,148.5,148.48,0.1252668]
[1726927880183,6.98538,148.49,148.48,0.1252668]
[1726927880383,24.027864,148.49,148.44,17.08572129]
[1726927880776,0.12549,148.5,148.44,17.08572129]
[1726927880991,0.25098,148.5,148.44,17.08572129]
[1726927881188,0.82452229,148.49,148.44,17.08572129]
[1726927881390,0.25098,148.5,148.44,17.08572129]
[1726927881574,0.25098,148.51,148.44,17.08572129]
[1726927881774,24.027864,148.51,148.44,17.08572129]
[1726927882192,0.82452229,148.5,148.44,17.08572129]
[1726927882394,0.12549,148.49,148.44,17.08572129]
[1726927882989,0.12549,148.5,148.44,17.08572129]
[1726927884277,0.95001229,148.5,148.44,17.08572129]
[1726927884478,0.95001229,148.5,148.44,16.4017293]
[1726927885884,0.12549,148.5,148.44,16.4017293]
[1726927886086,20.18,148.55,148.45,1.3472672]
[1726927886276,6.7319,148.55,148.45,1.3472672]
[1726927886777,6.7319,148.55,148.44,16.4017293]
[1726927887484,24.027864,148.54,148.44,16.4017293]
[1726927887669,24.027864,148.54,148.45,0.68394592]
[1726927888078,0.82452229,148.53,148.45,0.68394592]
[1726927888671,0.25098,148.52,148.45,0.68394592]
[1726927888873,0.82452229,148.51,148.45,0.68394592]
[1726927892096,0.25098,148.52,148.45,0.68394592]
[1726927892894,0.82452229,148.51,148.45,0.68394592]
[1726927893296,24.027864,148.52,148.45,0.68394592]
[1726927893800,0.82452229,148.51,148.45,0.68394592]
[1726927896093,24.027864,148.52,148.45,0.68394592]
[1726927896899,0.12549,148.5,148.45,0.68394592]
[1726927897071,0.82452229,148.49,148.45,0.68394592]
[1726927897794,0.12549,148.51,148.45,0.68394592]
[1726927901305,0.95001229,148.51,148.45,0.68394592]
[1726927901483,6.85909,148.51,148.45,0.68394592]
[1726927901683,0.82452229,148.5,148.45,0.68394592]
[1726927903197,6.85909,148.51,148.45,2.03108216]
[1726927903198,0.12549,148.51,148.45,2.03108216]
[1726927903396,0.12549,148.51,148.45,0.68394592]
[1726927903711,0.12549,148.51,148.45,2.03101605]
[1726927903902,0.12549,148.51,148.45,0.68394592]
[1726927904499,0.95001229,148.51,148.45,0.68394592]
[1726927906399,0.12549,148.51,148.45,0.68394592]
[1726927909202,0.95001229,148.51,148.45,0.68394592]
[1726927909907,0.12549,148.51,148.45,0.68394592]
[1726927911911,0.95001229,148.51,148.45,0.68394592]
[1726927914400,0.82452229,148.51,148.45,0.68394592]
[1726927914612,20.23,148.59,148.48,6.3964]
[1726927914902,20.23,148.59,148.48,7.74324896]
[1726927915102,6.7318,148.55,148.48,7.74324631]
[1726927915304,0.82452229,148.54,148.48,6.3964]
[1726927915698,7.55692229,148.54,148.48,6.3964]
[1726927915891,6.7324,148.54,148.48,6.3964]
[1726927916092,6.7318,148.55,148.48,6.3964]
[1726927916292,0.25098,148.54,148.48,6.3964]
[1726927917797,0.82452229,148.53,148.48,6.3964]
[1726927920294,7.55722229,148.53,148.48,6.3964]
[1726927920614,6.98318,148.54,148.48,6.3964]
[1726927921416,0.25098,148.54,148.48,6.3964]
[1726927922113,0.25098,148.54,148.48,7.74324739]
[1726927923115,0.25098,148.54,148.48,6.3964]
[1726927923314,0.82452229,148.53,148.48,6.3964]
[1726927926720,0.25098,148.54,148.48,6.3964]
[1726927927119,6.98318,148.54,148.48,6.3964]
[1726927930614,0.25098,148.54,148.48,6.3964]
[1726927930818,47.41004209,148.6,148.49,15.0211]
[1726927931000,6.7297,148.6,148.52,15.0211]
[1726927932923,0.25098,148.59,148.52,15.0211]
[1726927933219,0.82452229,148.58,148.52,15.0211]
[1726927933418,0.12549,148.57,148.52,15.0211]
[1726927933594,0.82452229,148.56,148.52,15.0211]
[1726927935217,0.12549,148.55,148.52,15.0211]
[1726927935523,21.18001229,148.55,148.52,15.0211]
[1726927935824,6.7321,148.54,148.52,15.0211]
[1726927936031,0.82452229,148.53,148.52,15.0211]
[1726927936318,6.85719,148.55,148.52,15.0211]
[1726927936521,0.82452229,148.54,148.52,15.0211]
[1726927937119,0.12549,148.55,148.52,15.0211]
[1726927937325,0.12549,148.56,148.52,15.0211]
[1726927937621,6.7307,148.58,148.52,15.0211]
[1726927938626,0.25098,148.57,148.52,15.0211]
[1726927939223,24.027864,148.57,148.52,15.0211]
[1726927939621,0.82452229,148.56,148.52,15.0211]
[1726927942920,0.2547818,148.6,148.53,6.3357]